[Event "December 12 Early 2023"]
[Site "https://www.chess.com"]
[Date "2023.12.12"]
[Round "9"]
[White "Rangel, Daniel"]
[Black "Zaksaite, Salomeja"]
[Result "1-0"]
[Board "110"]
[TimeControl "180+1"]
[WhiteFideId "2124475"]
[BlackFideId "12801496"]
[WhiteElo "2493"]
[BlackElo "2363"]
[WhiteTeam "BRA"]
[BlackTeam "LTU"]
[WhiteClock "0:00:07"]
[BlackClock "0:00:00"]

1. e4 {[%clk 0:03:00]}  c5 {[%clk 0:02:48]} 2. Nf3 {[%clk 0:03:00]}  e6 {[%clk 0:02:48]} 3. b3 {[%clk 0:02:59]}  d6 {[%clk 0:02:43]} 4. Bb2 {[%clk 0:02:59]}  Nc6 {[%clk 0:02:41]} 5. Bb5 {[%clk 0:02:53]}  Nf6 {[%clk 0:02:39]} 6. Bxc6+ {[%clk 0:02:52]}  bxc6 {[%clk 0:02:39]} 7. e5 {[%clk 0:02:51]}  dxe5 {[%clk 0:02:27]} 8. Nxe5 {[%clk 0:02:50]}  Qc7 {[%clk 0:02:27]} 9. O-O {[%clk 0:02:49]}  Be7 {[%clk 0:02:27]} 10. Na3 {[%clk 0:02:47]}  O-O {[%clk 0:02:28]} 11. Nac4 {[%clk 0:02:46]}  Bb7 {[%clk 0:02:27]} 12. d3 {[%clk 0:02:41]}  Rad8 {[%clk 0:02:27]} 13. a4 {[%clk 0:02:38]}  Ne8 {[%clk 0:02:23]} 14. Qe2 {[%clk 0:02:35]}  f6 {[%clk 0:02:23]} 15. Nf3 {[%clk 0:02:19]}  Bc8 {[%clk 0:02:20]} 16. Nfd2 {[%clk 0:02:15]}  Nd6 {[%clk 0:02:18]} 17. f4 {[%clk 0:02:13]}  Nf5 {[%clk 0:02:11]} 18. Nf3 {[%clk 0:02:05]}  Nd4 {[%clk 0:02:12]} 19. Nxd4 {[%clk 0:02:02]}  cxd4 {[%clk 0:02:13]} 20. Rae1 {[%clk 0:01:56]}  c5 {[%clk 0:02:11]} 21. Bc1 {[%clk 0:01:38]}  Rd5 {[%clk 0:02:06]} 22. Bd2 {[%clk 0:01:38]}  Re8 {[%clk 0:02:01]} 23. Qf3 {[%clk 0:01:34]}  Bf8 {[%clk 0:01:36]} 24. Re2 {[%clk 0:01:18]}  Rd7 {[%clk 0:01:14]} 25. Rfe1 {[%clk 0:01:12]}  Bb7 {[%clk 0:01:14]} 26. Qh3 {[%clk 0:01:10]}  Bd5 {[%clk 0:01:15]} 27. Ba5 {[%clk 0:00:48]}  Qb7 {[%clk 0:01:05]} 28. Bd2 {[%clk 0:00:45]}  Rf7 {[%clk 0:01:03]} 29. Qh5 {[%clk 0:00:36]}  g6 {[%clk 0:01:00]} 30. Qg4 {[%clk 0:00:36]}  Qc6 {[%clk 0:00:55]} 31. Qg3 {[%clk 0:00:30]}  Rg7 {[%clk 0:00:43]} 32. Na5 {[%clk 0:00:27]}  Qa8 {[%clk 0:00:38]} 33. Qg4 {[%clk 0:00:27]}  Qd8 {[%clk 0:00:33]} 34. Qg3 {[%clk 0:00:23]}  Qa8 {[%clk 0:00:33]} 35. Qh4 {[%clk 0:00:23]}  Qd8 {[%clk 0:00:32]} 36. Qh3 {[%clk 0:00:20]}  Bd6 {[%clk 0:00:20]} 37. Nc4 {[%clk 0:00:17]}  Bb8 {[%clk 0:00:19]} 38. Qg4 {[%clk 0:00:14]}  Qc7 {[%clk 0:00:11]} 39. Rf2 {[%clk 0:00:11]}  g5 {[%clk 0:00:11]} 40. Qh5 {[%clk 0:00:09]}  Rf8 {[%clk 0:00:04]} 41. fxg5 {[%clk 0:00:09]}  f5 {[%clk 0:00:02]} 42. g3 {[%clk 0:00:07]}  Qc8 {[%clk 0:00:02]} 43. h4 {[%clk 0:00:06]}  Ba8 {[%clk 0:00:01]} 44. Qe2 {[%clk 0:00:06]}  Qb7 {[%clk 0:00:02]} 45. Rh2 {[%clk 0:00:06]}  Qc6 {[%clk 0:00:02]} 46. Qf2 {[%clk 0:00:06]}  Qd5 {[%clk 0:00:02]} 47. Bf4 {[%clk 0:00:05]}  h6 {[%clk 0:00:02]} 48. Bxb8 {[%clk 0:00:04]}  Rxb8 {[%clk 0:00:02]} 49. gxh6 {[%clk 0:00:04]}  Rg6 {[%clk 0:00:02]} 50. h7+ {[%clk 0:00:03]}  Kxh7 {[%clk 0:00:02]} 51. Kf1 {[%clk 0:00:03]}  Rbg8 {[%clk 0:00:03]} 52. Qe2 {[%clk 0:00:03]}  Rxg3 {[%clk 0:00:03]} 53. Qh5+ {[%clk 0:00:04]}  Kg7 {[%clk 0:00:03]} 54. Rf2 {[%clk 0:00:04]}  Kf8 {[%clk 0:00:02]} 55. Ke2 {[%clk 0:00:05]}  Re3+ {[%clk 0:00:02]} 56. Kd2 {[%clk 0:00:05]}  Rxe1 {[%clk 0:00:02]} 57. Kxe1 {[%clk 0:00:06]}  Qh1+ {[%clk 0:00:03]} 58. Kd2 {[%clk 0:00:07]}  Rg2 {[%clk 0:00:02]} 59. Qh6+ {[%clk 0:00:07]}  Ke7 {[%clk 0:00:02]} 60. Qf4 {[%clk 0:00:07]}  Rxf2+ {[%clk 0:00:02]} 61. Qxf2 {[%clk 0:00:08]}  Qh3 {[%clk 0:00:01]} 62. Qf4 {[%clk 0:00:08]}  Qg2+ {[%clk 0:00:00]} 63. Kc1 {[%clk 0:00:07]} 1-0

[Event "December 12 Early 2023"]
[Site "https://www.chess.com"]
[Date "2023.12.12"]
[Round "9"]
[White "Shinkarev, M"]
[Black "Filippova, Margarita"]
[Result "0-1"]
[Board "113"]
[TimeControl "180+1"]
[WhiteFideId "4145348"]
[BlackFideId "34199680"]
[WhiteElo "2478"]
[BlackElo "2322"]
[WhiteTeam "RUS"]
[BlackTeam "RUS"]
[WhiteClock "0:00:00"]
[BlackClock "0:00:41"]

1. c4 {[%clk 0:03:00]}  Nf6 {[%clk 0:02:59]} 2. g3 {[%clk 0:02:56]}  e6 {[%clk 0:02:59]} 3. Bg2 {[%clk 0:02:56]}  d5 {[%clk 0:03:00]} 4. cxd5 {[%clk 0:02:56]}  exd5 {[%clk 0:03:01]} 5. d4 {[%clk 0:02:57]}  Bd6 {[%clk 0:03:01]} 6. Nf3 {[%clk 0:02:58]}  O-O {[%clk 0:03:01]} 7. Ne5 {[%clk 0:02:57]}  c6 {[%clk 0:03:02]} 8. O-O {[%clk 0:02:56]}  Re8 {[%clk 0:02:59]} 9. f4 {[%clk 0:02:54]}  b6 {[%clk 0:02:55]} 10. Nc3 {[%clk 0:02:50]}  Bb7 {[%clk 0:02:50]} 11. h3 {[%clk 0:02:47]}  Nbd7 {[%clk 0:02:47]} 12. e3 {[%clk 0:02:43]}  a6 {[%clk 0:02:46]} 13. Kh2 {[%clk 0:02:37]}  Qe7 {[%clk 0:02:44]} 14. e4 {[%clk 0:02:23]}  dxe4 {[%clk 0:02:43]} 15. Nxe4 {[%clk 0:02:24]}  Nxe4 {[%clk 0:02:43]} 16. Bxe4 {[%clk 0:02:24]}  Rad8 {[%clk 0:02:38]} 17. Bg2 {[%clk 0:02:11]}  Nxe5 {[%clk 0:02:35]} 18. dxe5 {[%clk 0:01:58]}  Bxe5 {[%clk 0:02:36]} 19. Qb3 {[%clk 0:01:51]}  Bd4 {[%clk 0:02:31]} 20. f5 {[%clk 0:01:49]}  c5 {[%clk 0:02:31]} 21. Bxb7 {[%clk 0:01:24]}  Qxb7 {[%clk 0:02:32]} 22. Qc2 {[%clk 0:01:24]}  f6 {[%clk 0:02:31]} 23. Bf4 {[%clk 0:01:22]}  Qe4 {[%clk 0:02:26]} 24. Qxe4 {[%clk 0:01:20]}  Rxe4 {[%clk 0:02:27]} 25. Bc7 {[%clk 0:01:07]}  Rde8 {[%clk 0:02:28]} 26. h4 {[%clk 0:00:51]}  Re2+ {[%clk 0:02:23]} 27. Kh3 {[%clk 0:00:51]}  Rxb2 {[%clk 0:02:23]} 28. h5 {[%clk 0:00:45]}  h6 {[%clk 0:02:22]} 29. a4 {[%clk 0:00:43]}  Ree2 {[%clk 0:02:17]} 30. Rab1 {[%clk 0:00:42]}  b5 {[%clk 0:02:16]} 31. Rxb2 {[%clk 0:00:36]}  Bxb2 {[%clk 0:02:13]} 32. Rd1 {[%clk 0:00:31]}  bxa4 {[%clk 0:02:10]} 33. Rd8+ {[%clk 0:00:27]}  Kh7 {[%clk 0:02:09]} 34. Ra8 {[%clk 0:00:26]}  Be5 {[%clk 0:01:58]} 35. Bb6 {[%clk 0:00:17]}  Re3 {[%clk 0:01:54]} 36. Bxc5 {[%clk 0:00:15]}  Rxg3+ {[%clk 0:01:54]} 37. Kh4 {[%clk 0:00:16]}  Rc3 {[%clk 0:01:52]} 38. Bf8 {[%clk 0:00:15]}  Rc4+ {[%clk 0:01:51]} 39. Kh3 {[%clk 0:00:15]}  Rc3+ {[%clk 0:01:37]} 40. Kh4 {[%clk 0:00:14]}  Rc4+ {[%clk 0:01:13]} 41. Kh3 {[%clk 0:00:14]}  Bd4 {[%clk 0:00:55]} 42. Rxa6 {[%clk 0:00:12]}  Kg8 {[%clk 0:00:54]} 43. Bd6 {[%clk 0:00:10]}  Be5 {[%clk 0:00:52]} 44. Ra8+ {[%clk 0:00:07]}  Kh7 {[%clk 0:00:51]} 45. Bf8 {[%clk 0:00:06]}  Rc3+ {[%clk 0:00:51]} 46. Kh4 {[%clk 0:00:05]}  Rf3 {[%clk 0:00:47]} 47. Ra7 {[%clk 0:00:04]}  Rg3 {[%clk 0:00:43]} 48. Rxa4 {[%clk 0:00:02]}  Rg5 {[%clk 0:00:43]} 49. Rg4 {[%clk 0:00:00]}  Kg8 {[%clk 0:00:41]} 0-1

[Event "December 12 Early 2023"]
[Site "https://www.chess.com"]
[Date "2023.12.12"]
[Round "9"]
[White "Dilmukhametov, Artur"]
[Black "Nasybullina, Alfia"]
[Result "0-1"]
[Board "115"]
[TimeControl "180+1"]
[WhiteFideId "24179922"]
[BlackFideId "4132416"]
[WhiteElo "2448"]
[BlackElo "2286"]
[WhiteTeam "RUS"]
[BlackTeam "KAZ"]
[WhiteClock "0:00:14"]
[BlackClock "0:00:41"]

1. e4 {[%clk 0:03:00]}  c6 {[%clk 0:02:57]} 2. d4 {[%clk 0:03:00]}  d5 {[%clk 0:02:54]} 3. e5 {[%clk 0:03:00]}  Bf5 {[%clk 0:02:53]} 4. h4 {[%clk 0:03:00]}  h5 {[%clk 0:02:53]} 5. Bd3 {[%clk 0:03:00]}  Bxd3 {[%clk 0:02:53]} 6. Qxd3 {[%clk 0:03:01]}  e6 {[%clk 0:02:53]} 7. Bg5 {[%clk 0:03:01]}  Qb6 {[%clk 0:02:50]} 8. Nd2 {[%clk 0:03:01]}  Nd7 {[%clk 0:02:50]} 9. Ngf3 {[%clk 0:03:01]}  Ne7 {[%clk 0:02:50]} 10. c4 {[%clk 0:03:01]}  Ng6 {[%clk 0:02:47]} 11. O-O {[%clk 0:02:54]}  dxc4 {[%clk 0:02:36]} 12. Nxc4 {[%clk 0:02:53]}  Qa6 {[%clk 0:02:36]} 13. Rfd1 {[%clk 0:02:21]}  Nb6 {[%clk 0:02:15]} 14. Nfd2 {[%clk 0:01:59]}  Nxc4 {[%clk 0:02:03]} 15. Nxc4 {[%clk 0:01:59]}  Be7 {[%clk 0:02:00]} 16. Bxe7 {[%clk 0:01:56]}  Kxe7 {[%clk 0:02:00]} 17. g3 {[%clk 0:01:50]}  Rad8 {[%clk 0:01:56]} 18. b3 {[%clk 0:01:47]}  c5 {[%clk 0:01:48]} 19. Qe3 {[%clk 0:01:44]}  cxd4 {[%clk 0:01:46]} 20. Qg5+ {[%clk 0:01:44]}  Ke8 {[%clk 0:01:40]} 21. Nd6+ {[%clk 0:01:42]}  Rxd6 {[%clk 0:01:39]} 22. exd6 {[%clk 0:01:42]}  Qxd6 {[%clk 0:01:40]} 23. Qb5+ {[%clk 0:01:42]}  Qd7 {[%clk 0:01:31]} 24. Qxd7+ {[%clk 0:01:35]}  Kxd7 {[%clk 0:01:32]} 25. Rxd4+ {[%clk 0:01:35]}  Ke7 {[%clk 0:01:32]} 26. Rc1 {[%clk 0:01:33]}  Ne5 {[%clk 0:01:20]} 27. Kg2 {[%clk 0:01:29]}  Nc6 {[%clk 0:01:18]} 28. Rd2 {[%clk 0:01:22]}  g6 {[%clk 0:01:17]} 29. Rcd1 {[%clk 0:01:22]}  Rb8 {[%clk 0:01:15]} 30. Rd7+ {[%clk 0:01:21]}  Kf6 {[%clk 0:01:15]} 31. Rc1 {[%clk 0:00:59]}  a5 {[%clk 0:01:12]} 32. Rc3 {[%clk 0:00:58]}  Kg7 {[%clk 0:01:06]} 33. Rf3 {[%clk 0:00:57]}  Ne5 {[%clk 0:01:06]} 34. Rfd3 {[%clk 0:00:55]}  Nxd3 {[%clk 0:01:05]} 35. Rxd3 {[%clk 0:00:54]}  b5 {[%clk 0:01:06]} 36. Kf3 {[%clk 0:00:52]}  Kf6 {[%clk 0:01:06]} 37. Kf4 {[%clk 0:00:51]}  b4 {[%clk 0:01:04]} 38. Rd6 {[%clk 0:00:48]}  Rb5 {[%clk 0:01:04]} 39. Ra6 {[%clk 0:00:47]}  Rf5+ {[%clk 0:01:02]} 40. Ke3 {[%clk 0:00:47]}  Re5+ {[%clk 0:01:02]} 41. Kf3 {[%clk 0:00:47]}  Rc5 {[%clk 0:01:01]} 42. Ra7 {[%clk 0:00:43]}  e5 {[%clk 0:00:59]} 43. Ra6+ {[%clk 0:00:40]}  Kf5 {[%clk 0:00:59]} 44. Ra7 {[%clk 0:00:38]}  f6 {[%clk 0:00:58]} 45. Ra6 {[%clk 0:00:38]}  e4+ {[%clk 0:00:56]} 46. Kg2 {[%clk 0:00:39]}  Ke5 {[%clk 0:00:55]} 47. Ra8 {[%clk 0:00:36]}  Kd4 {[%clk 0:00:54]} 48. Ra6 {[%clk 0:00:36]}  Rf5 {[%clk 0:00:54]} 49. Rc6 {[%clk 0:00:25]}  Rf3 {[%clk 0:00:52]} 50. Rc4+ {[%clk 0:00:24]}  Kd5 {[%clk 0:00:52]} 51. Rc8 {[%clk 0:00:21]}  Rc3 {[%clk 0:00:51]} 52. Rd8+ {[%clk 0:00:20]}  Ke5 {[%clk 0:00:50]} 53. Ra8 {[%clk 0:00:20]}  Rc5 {[%clk 0:00:49]} 54. Rg8 {[%clk 0:00:19]}  Kf5 {[%clk 0:00:46]} 55. Rd8 {[%clk 0:00:16]}  g5 {[%clk 0:00:45]} 56. hxg5 {[%clk 0:00:16]}  fxg5 {[%clk 0:00:45]} 57. Rf8+ {[%clk 0:00:16]}  Ke5 {[%clk 0:00:44]} 58. Rh8 {[%clk 0:00:16]}  h4 {[%clk 0:00:42]} 59. gxh4 {[%clk 0:00:16]}  gxh4 {[%clk 0:00:43]} 60. Rxh4 {[%clk 0:00:16]}  Kd4 {[%clk 0:00:43]} 61. Rh3 {[%clk 0:00:15]}  Rf5 {[%clk 0:00:42]} 62. Rh8 {[%clk 0:00:14]}  Kc3 {[%clk 0:00:42]} 63. Ra8 {[%clk 0:00:15]}  Kb2 {[%clk 0:00:42]} 64. Re8 {[%clk 0:00:15]}  Kxa2 {[%clk 0:00:42]} 65. Rxe4 {[%clk 0:00:15]}  Kxb3 {[%clk 0:00:42]} 66. Re3+ {[%clk 0:00:15]}  Ka4 {[%clk 0:00:43]} 67. Kg3 {[%clk 0:00:13]}  b3 {[%clk 0:00:43]} 68. Kg4 {[%clk 0:00:14]}  Rxf2 {[%clk 0:00:43]} 69. Re4+ {[%clk 0:00:12]}  Ka3 {[%clk 0:00:43]} 70. Re3 {[%clk 0:00:12]}  a4 {[%clk 0:00:43]} 71. Kg3 {[%clk 0:00:13]}  Rf8 {[%clk 0:00:42]} 72. Re2 {[%clk 0:00:12]}  b2 {[%clk 0:00:42]} 73. Re3+ {[%clk 0:00:12]}  Ka2 {[%clk 0:00:43]} 74. Re2 {[%clk 0:00:13]}  Ka1 {[%clk 0:00:42]} 75. Kg2 {[%clk 0:00:14]}  b1=Q {[%clk 0:00:41]} 0-1

[Event "December 12 Early 2023"]
[Site "https://www.chess.com"]
[Date "2023.12.12"]
[Round "9"]
[White "Khromkin, Andrey"]
[Black "Cardozo Munar, Carlos Eduardo"]
[Result "1-0"]
[Board "116"]
[TimeControl "180+1"]
[WhiteFideId "4154126"]
[BlackFideId "4409477"]
[WhiteElo "2447"]
[BlackElo "2281"]
[WhiteTeam "RUS"]
[BlackTeam "COL"]
[WhiteClock "0:01:35"]
[BlackClock "0:01:50"]

1. d4 {[%clk 0:03:00]}  d5 {[%clk 0:02:59]} 2. c4 {[%clk 0:03:01]}  e5 {[%clk 0:03:00]} 3. dxe5 {[%clk 0:03:00]}  d4 {[%clk 0:03:01]} 4. Nf3 {[%clk 0:03:01]}  Nc6 {[%clk 0:03:01]} 5. g3 {[%clk 0:03:01]}  Nge7 {[%clk 0:02:59]} 6. Bg2 {[%clk 0:03:01]}  Ng6 {[%clk 0:03:00]} 7. O-O {[%clk 0:03:01]}  Ngxe5 {[%clk 0:03:01]} 8. Nxe5 {[%clk 0:03:01]}  Nxe5 {[%clk 0:03:01]} 9. Qb3 {[%clk 0:02:49]}  c6 {[%clk 0:02:55]} 10. Rd1 {[%clk 0:02:48]}  Bc5 {[%clk 0:02:54]} 11. Nc3 {[%clk 0:02:47]}  O-O {[%clk 0:02:49]} 12. Ne4 {[%clk 0:02:47]}  Qe7 {[%clk 0:02:49]} 13. Nxc5 {[%clk 0:02:33]}  Qxc5 {[%clk 0:02:42]} 14. Bd2 {[%clk 0:02:21]}  Qxc4 {[%clk 0:02:38]} 15. Qa3 {[%clk 0:01:52]}  d3 {[%clk 0:02:23]} 16. exd3 {[%clk 0:01:46]}  Qxd3 {[%clk 0:02:22]} 17. Bc3 {[%clk 0:01:45]}  Qf5 {[%clk 0:02:02]} 18. Qe7 {[%clk 0:01:41]}  Nf3+ {[%clk 0:01:50]} 19. Bxf3 {[%clk 0:01:38]}  Qxf3 {[%clk 0:01:50]} 20. Rd8 {[%clk 0:01:35]}  Bh3 {[%clk 0:01:50]} 21. Qxf8# {[%clk 0:01:35]} 1-0

[Event "December 12 Early 2023"]
[Site "https://www.chess.com"]
[Date "2023.12.12"]
[Round "9"]
[White "Pourkashiyan, Atousa"]
[Black "Deveci, Huseyin Said"]
[Result "1-0"]
[Board "117"]
[TimeControl "180+1"]
[WhiteFideId "12502014"]
[BlackFideId "26322455"]
[WhiteElo "2440"]
[BlackElo "2263"]
[WhiteTeam "USA"]
[BlackTeam "TUR"]
[WhiteClock "0:00:13"]
[BlackClock "0:00:00"]

1. e4 {[%clk 0:02:58]}  c5 {[%clk 0:02:59]} 2. Nf3 {[%clk 0:02:58]}  e6 {[%clk 0:02:59]} 3. d4 {[%clk 0:02:57]}  cxd4 {[%clk 0:03:00]} 4. Nxd4 {[%clk 0:02:58]}  a6 {[%clk 0:03:01]} 5. c4 {[%clk 0:02:58]}  Qc7 {[%clk 0:03:00]} 6. a3 {[%clk 0:02:58]}  Nf6 {[%clk 0:02:59]} 7. Nc3 {[%clk 0:02:56]}  Nc6 {[%clk 0:02:59]} 8. Be2 {[%clk 0:02:46]}  Bc5 {[%clk 0:02:47]} 9. Be3 {[%clk 0:02:39]}  Ne5 {[%clk 0:02:34]} 10. O-O {[%clk 0:02:33]}  O-O {[%clk 0:02:33]} 11. Rc1 {[%clk 0:02:06]}  d6 {[%clk 0:02:07]} 12. b4 {[%clk 0:01:55]}  Bxd4 {[%clk 0:02:06]} 13. Qxd4 {[%clk 0:01:48]}  Rd8 {[%clk 0:02:04]} 14. h3 {[%clk 0:01:40]}  Bd7 {[%clk 0:02:02]} 15. f4 {[%clk 0:01:34]}  Ng6 {[%clk 0:01:57]} 16. f5 {[%clk 0:01:10]}  exf5 {[%clk 0:01:55]} 17. exf5 {[%clk 0:01:10]}  Ne5 {[%clk 0:01:54]} 18. Bg5 {[%clk 0:01:10]}  Bc6 {[%clk 0:01:39]} 19. Qh4 {[%clk 0:00:39]}  Qb6+ {[%clk 0:01:17]} 20. Kh1 {[%clk 0:00:39]}  Ned7 {[%clk 0:01:04]} 21. b5 {[%clk 0:00:39]}  axb5 {[%clk 0:01:02]} 22. cxb5 {[%clk 0:00:40]}  Bxg2+ {[%clk 0:00:48]} 23. Kxg2 {[%clk 0:00:40]}  Rxa3 {[%clk 0:00:49]} 24. Nd5 {[%clk 0:00:38]}  Nxd5 {[%clk 0:00:39]} 25. Bxd8 {[%clk 0:00:39]}  Ne3+ {[%clk 0:00:37]} 26. Kh1 {[%clk 0:00:34]}  Nxf5 {[%clk 0:00:04]} 27. Bxb6 {[%clk 0:00:13]}  Nxh4 {[%clk 0:00:04]} 28. Bg1 {[%clk 0:00:13]}  Rxh3+ {[%clk 0:00:02]} 29. Bh2 {[%clk 0:00:14]}  Nf8 {[%clk 0:00:01]} 30. Bg4 {[%clk 0:00:14]}  Re3 {[%clk 0:00:01]} 31. Rfe1 {[%clk 0:00:14]}  Rxe1+ {[%clk 0:00:01]} 32. Rxe1 {[%clk 0:00:14]}  d5 {[%clk 0:00:02]} 33. Re8 {[%clk 0:00:14]}  Ng6 {[%clk 0:00:02]} 34. Bd6 {[%clk 0:00:14]}  f6 {[%clk 0:00:00]} 35. Be6+ {[%clk 0:00:13]} 1-0

[Event "December 12 Early 2023"]
[Site "https://www.chess.com"]
[Date "2023.12.12"]
[Round "9"]
[White "Clawitter, Craig"]
[Black "Rios Escobar, Adan"]
[Result "0-1"]
[Board "119"]
[TimeControl "180+1"]
[WhiteFideId "2023105"]
[BlackFideId "3403645"]
[WhiteElo "2244"]
[BlackElo "2420"]
[WhiteTeam "USA"]
[BlackTeam "CHI"]
[WhiteClock "0:00:00"]
[BlackClock "0:01:25"]

1. e4 {[%clk 0:03:00]}  c6 {[%clk 0:02:57]} 2. d4 {[%clk 0:03:00]}  d5 {[%clk 0:02:57]} 3. e5 {[%clk 0:03:01]}  Bf5 {[%clk 0:02:56]} 4. Nf3 {[%clk 0:03:01]}  e6 {[%clk 0:02:55]} 5. Be2 {[%clk 0:03:02]}  Nd7 {[%clk 0:02:54]} 6. O-O {[%clk 0:03:01]}  a5 {[%clk 0:02:54]} 7. Nbd2 {[%clk 0:03:00]}  a4 {[%clk 0:02:43]} 8. a3 {[%clk 0:02:46]}  f6 {[%clk 0:02:36]} 9. Re1 {[%clk 0:02:29]}  fxe5 {[%clk 0:02:34]} 10. dxe5 {[%clk 0:02:30]}  Bc5 {[%clk 0:02:34]} 11. Nf1 {[%clk 0:02:25]}  Nh6 {[%clk 0:02:32]} 12. Nd4 {[%clk 0:01:56]}  Qb6 {[%clk 0:02:30]} 13. Be3 {[%clk 0:01:22]}  Nxe5 {[%clk 0:02:20]} 14. Nxf5 {[%clk 0:01:21]}  Nxf5 {[%clk 0:02:15]} 15. Bxc5 {[%clk 0:01:15]}  Qxc5 {[%clk 0:02:16]} 16. Bh5+ {[%clk 0:01:12]}  Ng6 {[%clk 0:02:04]} 17. Rxe6+ {[%clk 0:01:03]}  Kd7 {[%clk 0:01:53]} 18. Qg4 {[%clk 0:00:26]}  Kxe6 {[%clk 0:01:47]} 19. Bxg6 {[%clk 0:00:25]}  hxg6 {[%clk 0:01:42]} 20. Qxg6+ {[%clk 0:00:25]}  Kd7 {[%clk 0:01:37]} 21. Qxf5+ {[%clk 0:00:20]}  Kc7 {[%clk 0:01:38]} 22. Re1 {[%clk 0:00:18]}  Raf8 {[%clk 0:01:36]} 23. Qe5+ {[%clk 0:00:13]}  Kc8 {[%clk 0:01:35]} 24. Ne3 {[%clk 0:00:05]}  Re8 {[%clk 0:01:30]} 25. Qxg7 {[%clk 0:00:00]}  d4 {[%clk 0:01:25]} 0-1

[Event "December 12 Early 2023"]
[Site "https://www.chess.com"]
[Date "2023.12.12"]
[Round "9"]
[White "Parra Gomez, Adrian"]
[Black "Vanek, Tomas"]
[Result "1-0"]
[Board "121"]
[TimeControl "180+1"]
[WhiteFideId "3513106"]
[BlackFideId "313459"]
[WhiteElo "2416"]
[BlackElo "2231"]
[WhiteTeam "CUB"]
[BlackTeam "CZE"]
[WhiteClock "0:00:25"]
[BlackClock "0:00:04"]

1. d4 {[%clk 0:03:00]}  f5 {[%clk 0:02:59]} 2. c4 {[%clk 0:02:59]}  Nf6 {[%clk 0:02:57]} 3. Nc3 {[%clk 0:03:00]}  b6 {[%clk 0:02:57]} 4. e3 {[%clk 0:02:58]}  Bb7 {[%clk 0:02:56]} 5. f3 {[%clk 0:02:59]}  e6 {[%clk 0:02:51]} 6. Bd3 {[%clk 0:02:59]}  Bd6 {[%clk 0:02:42]} 7. Nge2 {[%clk 0:02:58]}  Nh5 {[%clk 0:02:31]} 8. Qc2 {[%clk 0:02:30]}  Qh4+ {[%clk 0:02:28]} 9. Kd1 {[%clk 0:02:30]}  a5 {[%clk 0:01:51]} 10. a3 {[%clk 0:02:13]}  O-O {[%clk 0:01:49]} 11. Nb5 {[%clk 0:01:50]}  Nc6 {[%clk 0:01:33]} 12. Nxd6 {[%clk 0:01:45]}  cxd6 {[%clk 0:01:33]} 13. Qd2 {[%clk 0:01:38]}  a4 {[%clk 0:01:23]} 14. Qe1 {[%clk 0:01:38]}  Qe7 {[%clk 0:01:14]} 15. Rg1 {[%clk 0:01:27]}  Nf6 {[%clk 0:01:12]} 16. Qh4 {[%clk 0:01:22]}  Ba6 {[%clk 0:01:10]} 17. Bd2 {[%clk 0:01:15]}  Rab8 {[%clk 0:01:07]} 18. Rc1 {[%clk 0:01:14]}  b5 {[%clk 0:01:05]} 19. c5 {[%clk 0:01:05]}  dxc5 {[%clk 0:00:58]} 20. Rxc5 {[%clk 0:01:06]}  b4 {[%clk 0:00:49]} 21. Bxa6 {[%clk 0:01:02]}  bxa3 {[%clk 0:00:50]} 22. bxa3 {[%clk 0:01:02]}  Rb1+ {[%clk 0:00:49]} 23. Nc1 {[%clk 0:00:59]}  Ra1 {[%clk 0:00:28]} 24. Ke2 {[%clk 0:00:46]}  Rxa3 {[%clk 0:00:27]} 25. Nd3 {[%clk 0:00:46]}  f4 {[%clk 0:00:23]} 26. Nxf4 {[%clk 0:00:33]}  e5 {[%clk 0:00:17]} 27. Bc4+ {[%clk 0:00:29]}  d5 {[%clk 0:00:17]} 28. Nxd5 {[%clk 0:00:26]}  Nxd5 {[%clk 0:00:08]} 29. Bxd5+ {[%clk 0:00:27]}  Kh8 {[%clk 0:00:08]} 30. Qxe7 {[%clk 0:00:27]}  Nxe7 {[%clk 0:00:08]} 31. dxe5 {[%clk 0:00:27]}  Ra2 {[%clk 0:00:08]} 32. e4 {[%clk 0:00:27]}  Rd8 {[%clk 0:00:07]} 33. Bxa2 {[%clk 0:00:27]}  Ng6 {[%clk 0:00:07]} 34. Rgc1 {[%clk 0:00:27]}  Rf8 {[%clk 0:00:06]} 35. Rc8 {[%clk 0:00:27]}  a3 {[%clk 0:00:06]} 36. Rxf8+ {[%clk 0:00:26]}  Nxf8 {[%clk 0:00:06]} 37. Rc8 {[%clk 0:00:27]}  h6 {[%clk 0:00:05]} 38. Rxf8+ {[%clk 0:00:27]}  Kh7 {[%clk 0:00:05]} 39. Bg8+ {[%clk 0:00:27]}  Kg6 {[%clk 0:00:06]} 40. Bf7+ {[%clk 0:00:27]}  Kh7 {[%clk 0:00:06]} 41. e6 {[%clk 0:00:26]}  a2 {[%clk 0:00:06]} 42. Bc3 {[%clk 0:00:26]}  h5 {[%clk 0:00:05]} 43. h4 {[%clk 0:00:26]}  g5 {[%clk 0:00:04]} 44. Rh8# {[%clk 0:00:25]} 1-0

[Event "December 12 Early 2023"]
[Site "https://www.chess.com"]
[Date "2023.12.12"]
[Round "9"]
[White "Leve, Nitai"]
[Black "Borawski, Jakub"]
[Result "0-1"]
[Board "122"]
[TimeControl "180+1"]
[WhiteFideId "2006898"]
[BlackFideId "1143000"]
[WhiteElo "2413"]
[BlackElo "2223"]
[WhiteTeam "USA"]
[BlackTeam "POL"]
[WhiteClock "0:00:09"]
[BlackClock "0:00:08"]

1. e4 {[%clk 0:03:00]}  e5 {[%clk 0:03:00]} 2. Nf3 {[%clk 0:02:58]}  Nc6 {[%clk 0:03:00]} 3. d4 {[%clk 0:02:56]}  exd4 {[%clk 0:03:00]} 4. c3 {[%clk 0:02:54]}  dxc3 {[%clk 0:02:59]} 5. Nxc3 {[%clk 0:02:55]}  Bb4 {[%clk 0:02:59]} 6. Bc4 {[%clk 0:02:53]}  d6 {[%clk 0:02:54]} 7. Qb3 {[%clk 0:02:49]}  Qe7 {[%clk 0:02:52]} 8. O-O {[%clk 0:02:47]}  Bxc3 {[%clk 0:02:53]} 9. bxc3 {[%clk 0:02:47]}  Nf6 {[%clk 0:02:53]} 10. Bg5 {[%clk 0:02:47]}  O-O {[%clk 0:02:51]} 11. h3 {[%clk 0:02:41]}  Na5 {[%clk 0:02:49]} 12. Qa4 {[%clk 0:02:36]}  Nxc4 {[%clk 0:02:49]} 13. Qxc4 {[%clk 0:02:37]}  h6 {[%clk 0:02:41]} 14. Bxf6 {[%clk 0:02:36]}  Qxf6 {[%clk 0:02:40]} 15. Qxc7 {[%clk 0:02:36]}  Bxh3 {[%clk 0:02:33]} 16. gxh3 {[%clk 0:02:31]}  Qxf3 {[%clk 0:02:32]} 17. Qxd6 {[%clk 0:02:31]}  Qxh3 {[%clk 0:02:25]} 18. Rab1 {[%clk 0:02:30]}  Qg4+ {[%clk 0:02:18]} 19. Qg3 {[%clk 0:02:24]}  Qxe4 {[%clk 0:02:17]} 20. Rb4 {[%clk 0:02:23]}  Qc6 {[%clk 0:02:11]} 21. Rg4 {[%clk 0:02:19]}  g6 {[%clk 0:02:11]} 22. Kh2 {[%clk 0:02:14]}  Rac8 {[%clk 0:02:08]} 23. Rg1 {[%clk 0:02:11]}  Qf6 {[%clk 0:01:42]} 24. c4 {[%clk 0:01:45]}  Rc5 {[%clk 0:01:37]} 25. Rh4 {[%clk 0:01:35]}  h5 {[%clk 0:01:04]} 26. Kh3 {[%clk 0:01:29]}  Rfc8 {[%clk 0:01:02]} 27. f3 {[%clk 0:01:17]}  Rxc4 {[%clk 0:00:53]} 28. Rxh5 {[%clk 0:01:16]}  Qe6+ {[%clk 0:00:45]} 29. Kh2 {[%clk 0:01:12]}  Rc2+ {[%clk 0:00:38]} 30. Kh1 {[%clk 0:01:12]}  Rc1 {[%clk 0:00:34]} 31. Rh4 {[%clk 0:01:00]}  Rxg1+ {[%clk 0:00:33]} 32. Qxg1 {[%clk 0:00:52]}  Qxa2 {[%clk 0:00:33]} 33. Qe3 {[%clk 0:00:21]}  Qb2 {[%clk 0:00:27]} 34. Rg4 {[%clk 0:00:15]}  Rc1+ {[%clk 0:00:23]} 35. Rg1 {[%clk 0:00:15]}  Rxg1+ {[%clk 0:00:19]} 36. Qxg1 {[%clk 0:00:16]}  Qb3 {[%clk 0:00:16]} 37. Qg4 {[%clk 0:00:15]}  Qe6 {[%clk 0:00:15]} 38. Qd4 {[%clk 0:00:14]}  a6 {[%clk 0:00:14]} 39. Qd8+ {[%clk 0:00:14]}  Kg7 {[%clk 0:00:14]} 40. Qd4+ {[%clk 0:00:14]}  Qf6 {[%clk 0:00:14]} 41. Qe4 {[%clk 0:00:14]}  b5 {[%clk 0:00:14]} 42. Qb7 {[%clk 0:00:12]}  Qh4+ {[%clk 0:00:10]} 43. Kg2 {[%clk 0:00:12]}  Qg5+ {[%clk 0:00:10]} 44. Kh1 {[%clk 0:00:12]}  a5 {[%clk 0:00:10]} 45. Qa8 {[%clk 0:00:12]}  a4 {[%clk 0:00:10]} 46. Qe4 {[%clk 0:00:12]}  Qf6 {[%clk 0:00:08]} 47. Qd5 {[%clk 0:00:12]}  a3 {[%clk 0:00:08]} 48. Qxb5 {[%clk 0:00:12]}  a2 {[%clk 0:00:08]} 49. Kg2 {[%clk 0:00:11]}  a1=Q {[%clk 0:00:08]} 50. Kg3 {[%clk 0:00:09]}  Qae5+ {[%clk 0:00:08]} 0-1